[Event "Early-Titled-Tuesday-Blitz-October-03-2023"]
[Site "Chess.com"]
[Date "2023.10.03"]
[Round "4"]
[White "MAGMAchess02"]
[Black "ural58"]
[Result "0-1"]
[WhiteElo "2348"]
[BlackElo "2515"]
[TimeControl "180+1"]
[EndTime "8:38:09 PDT"]
[Termination "ural58 won on time"]

1. Nf3 {[%clk 0:03:00.9]} 1... Nc6 {[%clk 0:02:48.5]} 2. d4 {[%clk 0:02:59.9]}
2... d5 {[%clk 0:02:48.2]} 3. g3 {[%clk 0:02:59.3]} 3... Bf5 {[%clk 0:02:47.9]}
4. Bg2 {[%clk 0:02:57.4]} 4... Nb4 {[%clk 0:02:47.6]} 5. Na3 {[%clk 0:02:57.7]}
5... e6 {[%clk 0:02:47.8]} 6. O-O {[%clk 0:02:53.7]} 6... h6 {[%clk 0:02:47.7]}
7. c3 {[%clk 0:02:48.8]} 7... Nc6 {[%clk 0:02:47.3]} 8. Nc2 {[%clk 0:02:18.3]}
8... Nf6 {[%clk 0:02:46.3]} 9. Ne3 {[%clk 0:02:18.3]} 9... Bh7 {[%clk
0:02:45.9]} 10. b3 {[%clk 0:02:18.7]} 10... Be7 {[%clk 0:02:45.5]} 11. Bb2
{[%clk 0:02:17.4]} 11... O-O {[%clk 0:02:45.5]} 12. c4 {[%clk 0:02:14.2]} 12...
Ne4 {[%clk 0:02:44.8]} 13. Ne5 {[%clk 0:02:11.3]} 13... Nxe5 {[%clk 0:02:39.3]}
14. dxe5 {[%clk 0:02:12.2]} 14... c6 {[%clk 0:02:39.2]} 15. f3 {[%clk
0:01:33.5]} 15... Nc5 {[%clk 0:02:16.7]} 16. Kh1 {[%clk 0:01:30.8]} 16... a5
{[%clk 0:02:11.6]} 17. f4 {[%clk 0:01:29.4]} 17... Ne4 {[%clk 0:02:01.7]} 18. f5
{[%clk 0:01:29.3]} 18... Bc5 {[%clk 0:01:57.9]} 19. Bd4 {[%clk 0:00:48.8]} 19...
Qb6 {[%clk 0:01:57.8]} 20. Bxc5 {[%clk 0:00:19.5]} 20... Qxc5 {[%clk 0:01:58.7]}
21. Qd3 {[%clk 0:00:09.9]} 21... exf5 {[%clk 0:01:54.9]} 22. Nxf5 {[%clk
0:00:09.3]} 22... Bxf5 {[%clk 0:01:37.6]} 23. Rxf5 {[%clk 0:00:08.8]} 23... Nf2+
{[%clk 0:01:37.4]} 24. Rxf2 {[%clk 0:00:03.9]} 24... Qxf2 {[%clk 0:01:37.9]} 25.
Rf1 {[%clk 0:00:04.4]} 25... Qc5 {[%clk 0:01:37.1]} 26. Qf5 {[%clk 0:00:03.1]}
26... Rae8 {[%clk 0:01:35.1]} 27. e4 {[%clk 0:00:02.8]} 27... d4 {[%clk
0:01:34.8]} 28. e6 {[%clk 0:00:02.2]} 28... Qxf5 {[%clk 0:01:34.6]} 29. exf5
{[%clk 0:00:02.7]} 29... fxe6 {[%clk 0:01:34.6]} 30. fxe6 {[%clk 0:00:01.5]}
30... Rxf1+ {[%clk 0:01:34.6]} 31. Bxf1 {[%clk 0:00:02]} 31... Rxe6 {[%clk
0:01:35.2]} 0-1

[Event "Early-Titled-Tuesday-Blitz-October-03-2023"]
[Site "Chess.com"]
[Date "2023.10.03"]
[Round "4"]
[White "fabianvivasz"]
[Black "OriTaichman"]
[Result "0-1"]
[WhiteElo "2443"]
[BlackElo "2635"]
[TimeControl "180+1"]
[EndTime "8:38:10 PDT"]
[Termination "OriTaichman won by checkmate"]

1. e4 {[%clk 0:02:52.3]} 1... c5 {[%clk 0:02:59.5]} 2. Nf3 {[%clk 0:02:51.5]}
2... Nc6 {[%clk 0:02:59.8]} 3. d4 {[%clk 0:02:51.4]} 3... cxd4 {[%clk
0:03:00.7]} 4. Nxd4 {[%clk 0:02:52.3]} 4... d5 {[%clk 0:03:01.3]} 5. Bb5 {[%clk
0:02:45.5]} 5... dxe4 {[%clk 0:02:59.8]} 6. Nxc6 {[%clk 0:02:31.9]} 6... Qxd1+
{[%clk 0:03:00.7]} 7. Kxd1 {[%clk 0:02:31.9]} 7... a6 {[%clk 0:02:59]} 8. Ba4
{[%clk 0:01:48.4]} 8... Bd7 {[%clk 0:02:49.5]} 9. Nc3 {[%clk 0:01:48.8]} 9...
Bxc6 {[%clk 0:02:49.3]} 10. Bxc6+ {[%clk 0:01:48.7]} 10... bxc6 {[%clk
0:02:50.2]} 11. Nxe4 {[%clk 0:01:49.5]} 11... f5 {[%clk 0:02:50.9]} 12. Ng3
{[%clk 0:01:44.9]} 12... g6 {[%clk 0:02:49.9]} 13. Bf4 {[%clk 0:01:34]} 13...
O-O-O+ {[%clk 0:02:48.9]} 14. Kc1 {[%clk 0:01:30.4]} 14... Bg7 {[%clk
0:02:49.1]} 15. Re1 {[%clk 0:01:23.7]} 15... Rd5 {[%clk 0:02:47.3]} 16. Bd2
{[%clk 0:00:48.1]} 16... Bxb2+ {[%clk 0:02:36.3]} 17. Kxb2 {[%clk 0:00:47]}
17... Rxd2 {[%clk 0:02:36.9]} 18. Re6 {[%clk 0:00:31.6]} 18... Kd7 {[%clk
0:02:34.4]} 19. Rae1 {[%clk 0:00:28.4]} 19... Rxf2 {[%clk 0:02:08.3]} 20. R6e3
{[%clk 0:00:25.8]} 20... Rxg2 {[%clk 0:02:02.9]} 21. Ra3 {[%clk 0:00:16.1]}
21... Nf6 {[%clk 0:02:02]} 22. Rxa6 {[%clk 0:00:15.1]} 22... Rb8+ {[%clk
0:02:00.9]} 23. Kc1 {[%clk 0:00:12.7]} 23... Nd5 {[%clk 0:01:58.3]} 24. Ra7+
{[%clk 0:00:11.1]} 24... Kd6 {[%clk 0:01:58.4]} 25. Ne2 {[%clk 0:00:09.6]} 25...
e5 {[%clk 0:01:49.4]} 26. a4 {[%clk 0:00:08.5]} 26... Rxh2 {[%clk 0:01:45.8]}
27. a5 {[%clk 0:00:08.1]} 27... f4 {[%clk 0:01:42.4]} 28. c4 {[%clk 0:00:07.2]}
28... Ne3 {[%clk 0:01:39.8]} 29. a6 {[%clk 0:00:06.5]} 29... f3 {[%clk
0:01:34.4]} 30. Rf7 {[%clk 0:00:02.2]} 30... Rxe2 {[%clk 0:01:31.7]} 31. a7
{[%clk 0:00:03]} 31... Rc2# {[%clk 0:01:31.3]} 0-1

[Event "Early-Titled-Tuesday-Blitz-October-03-2023"]
[Site "Chess.com"]
[Date "2023.10.03"]
[Round "4"]
[White "karinachess1"]
[Black "VovenRogel"]
[Result "0-1"]
[WhiteElo "2640"]
[BlackElo "2856"]
[TimeControl "180+1"]
[EndTime "8:38:14 PDT"]
[Termination "VovenRogel won on time"]

1. d4 {[%clk 0:03:00.9]} 1... Nf6 {[%clk 0:02:58.5]} 2. c4 {[%clk 0:03:00.9]}
2... e6 {[%clk 0:02:57.1]} 3. Nc3 {[%clk 0:03:01]} 3... Bb4 {[%clk 0:02:54.6]}
4. Qc2 {[%clk 0:03:00.5]} 4... c5 {[%clk 0:02:52.5]} 5. Nf3 {[%clk 0:03:00]}
5... cxd4 {[%clk 0:02:47.9]} 6. Nxd4 {[%clk 0:03:00.1]} 6... Nc6 {[%clk
0:02:46.9]} 7. Nxc6 {[%clk 0:02:49.5]} 7... bxc6 {[%clk 0:02:46.9]} 8. a3 {[%clk
0:02:41.1]} 8... Be7 {[%clk 0:02:46.7]} 9. e4 {[%clk 0:02:39.3]} 9... e5 {[%clk
0:02:46.9]} 10. Be2 {[%clk 0:02:35.8]} 10... O-O {[%clk 0:02:45.9]} 11. O-O
{[%clk 0:02:35.9]} 11... d6 {[%clk 0:02:46.5]} 12. h3 {[%clk 0:02:32.7]} 12...
Be6 {[%clk 0:02:45.6]} 13. Bg5 {[%clk 0:02:25.7]} 13... Nd7 {[%clk 0:02:40.7]}
14. Be3 {[%clk 0:02:22.6]} 14... a5 {[%clk 0:02:35]} 15. Rad1 {[%clk 0:02:19.5]}
15... Qc7 {[%clk 0:02:34.4]} 16. Rd2 {[%clk 0:02:03.4]} 16... Nb6 {[%clk
0:02:31.6]} 17. Na4 {[%clk 0:01:56.9]} 17... Nxa4 {[%clk 0:02:27.1]} 18. Qxa4
{[%clk 0:01:57.8]} 18... Rab8 {[%clk 0:02:17.6]} 19. Rfd1 {[%clk 0:01:26.6]}
19... Rb7 {[%clk 0:02:16.8]} 20. Qc2 {[%clk 0:00:48]} 20... Rfb8 {[%clk
0:02:15.3]} 21. Qc1 {[%clk 0:00:46.7]} 21... h6 {[%clk 0:02:13.6]} 22. Kh1
{[%clk 0:00:45.2]} 22... Rb3 {[%clk 0:02:12.5]} 23. c5 {[%clk 0:00:35.8]} 23...
d5 {[%clk 0:02:11.7]} 24. exd5 {[%clk 0:00:24.4]} 24... cxd5 {[%clk 0:02:12.6]}
25. Rd3 {[%clk 0:00:18]} 25... Rxb2 {[%clk 0:02:10.4]} 26. Bg4 {[%clk
0:00:18.4]} 26... Bxg4 {[%clk 0:02:06.5]} 27. hxg4 {[%clk 0:00:18.7]} 27... d4
{[%clk 0:02:06.6]} 28. Bxh6 {[%clk 0:00:16]} 28... Rb1 {[%clk 0:01:56.1]} 29.
Qxb1 {[%clk 0:00:04.3]} 29... Rxb1 {[%clk 0:01:57]} 30. Rxb1 {[%clk 0:00:04.9]}
30... gxh6 {[%clk 0:01:57.3]} 31. Rb5 {[%clk 0:00:03.4]} 31... Bxc5 {[%clk
0:01:55.4]} 32. Rd1 {[%clk 0:00:03.4]} 32... Bxa3 {[%clk 0:01:52.3]} 33. Rd5
{[%clk 0:00:02.7]} 33... Bf8 {[%clk 0:01:48.2]} 34. Re1 {[%clk 0:00:02.5]} 34...
Bd6 {[%clk 0:01:42.1]} 35. Ra1 {[%clk 0:00:02.1]} 35... Bb4 {[%clk 0:01:41.7]}
0-1

[Event "Early-Titled-Tuesday-Blitz-October-03-2023"]
[Site "Chess.com"]
[Date "2023.10.03"]
[Round "4"]
[White "Dixit_Nikhil"]
[Black "Vaathi_Coming"]
[Result "0-1"]
[WhiteElo "2638"]
[BlackElo "2872"]
[TimeControl "180+1"]
[EndTime "8:38:21 PDT"]
[Termination "Vaathi_Coming won by resignation"]

1. e4 {[%clk 0:02:59.8]} 1... e6 {[%clk 0:02:59]} 2. Qe2 {[%clk 0:02:54.3]} 2...
c5 {[%clk 0:02:58.1]} 3. Nf3 {[%clk 0:02:53]} 3... Nc6 {[%clk 0:02:58.1]} 4. g3
{[%clk 0:02:52.6]} 4... Nf6 {[%clk 0:02:09.4]} 5. Bg2 {[%clk 0:02:51.3]} 5... d5
{[%clk 0:02:08.1]} 6. exd5 {[%clk 0:02:49.9]} 6... Nxd5 {[%clk 0:02:09]} 7. O-O
{[%clk 0:02:49.4]} 7... Be7 {[%clk 0:02:09.3]} 8. Rd1 {[%clk 0:02:48.9]} 8...
Nc7 {[%clk 0:01:56.3]} 9. c3 {[%clk 0:02:29.3]} 9... Bf6 {[%clk 0:01:54.7]} 10.
d4 {[%clk 0:02:27]} 10... cxd4 {[%clk 0:01:55]} 11. cxd4 {[%clk 0:02:27.7]}
11... O-O {[%clk 0:01:53.5]} 12. Nc3 {[%clk 0:02:26.9]} 12... Nd5 {[%clk
0:01:52.5]} 13. Ne4 {[%clk 0:02:25.2]} 13... Be7 {[%clk 0:01:52.2]} 14. Ne5
{[%clk 0:02:22.1]} 14... Qb6 {[%clk 0:01:44.5]} 15. Qh5 {[%clk 0:02:00.3]} 15...
g6 {[%clk 0:00:49.4]} 16. Qh6 {[%clk 0:01:51]} 16... Nxd4 {[%clk 0:00:48.2]} 17.
Bg5 {[%clk 0:00:53.7]} 17... Nf5 {[%clk 0:00:46.3]} 18. Qh3 {[%clk 0:00:53.3]}
18... f6 {[%clk 0:00:46.1]} 19. Bh6 {[%clk 0:00:47.3]} 19... Nxh6 {[%clk
0:00:43.2]} 20. Qxh6 {[%clk 0:00:47.1]} 20... fxe5 {[%clk 0:00:41.1]} 21. Rxd5
{[%clk 0:00:37.2]} 21... exd5 {[%clk 0:00:40.1]} 22. Ng5 {[%clk 0:00:37.9]}
22... Bxg5 {[%clk 0:00:34.3]} 23. Bxd5+ {[%clk 0:00:38]} 23... Be6 {[%clk
0:00:34]} 24. Bxe6+ {[%clk 0:00:38.5]} 24... Qxe6 {[%clk 0:00:34.6]} 25. Qxg5
{[%clk 0:00:39.4]} 0-1

[Event "Early-Titled-Tuesday-Blitz-October-03-2023"]
[Site "Chess.com"]
[Date "2023.10.03"]
[Round "4"]
[White "ContrVersia"]
[Black "astralpulse"]
[Result "1-0"]
[WhiteElo "2902"]
[BlackElo "2697"]
[TimeControl "180+1"]
[EndTime "8:38:22 PDT"]
[Termination "ContrVersia won on time"]

1. Nf3 {[%clk 0:03:00.9]} 1... d5 {[%clk 0:02:59.4]} 2. c4 {[%clk 0:03:01.3]}
2... e6 {[%clk 0:02:59.6]} 3. g3 {[%clk 0:03:01.4]} 3... Nf6 {[%clk 0:02:59.4]}
4. b3 {[%clk 0:03:01.5]} 4... b6 {[%clk 0:02:58.6]} 5. Bg2 {[%clk 0:03:01.6]}
5... Bb7 {[%clk 0:02:58.7]} 6. O-O {[%clk 0:03:02.1]} 6... Bd6 {[%clk
0:02:58.7]} 7. Bb2 {[%clk 0:03:02.3]} 7... O-O {[%clk 0:02:55.8]} 8. Nc3 {[%clk
0:03:02.5]} 8... a6 {[%clk 0:02:55.9]} 9. e3 {[%clk 0:03:02.2]} 9... Qe7 {[%clk
0:02:51.7]} 10. a3 {[%clk 0:02:58.4]} 10... Nbd7 {[%clk 0:02:51.2]} 11. cxd5
{[%clk 0:02:54.2]} 11... exd5 {[%clk 0:02:41.4]} 12. Ne2 {[%clk 0:02:50.3]}
12... c5 {[%clk 0:02:32.9]} 13. d3 {[%clk 0:02:36.8]} 13... Rfe8 {[%clk
0:02:28.3]} 14. Nh4 {[%clk 0:02:35.1]} 14... Qe6 {[%clk 0:02:13.6]} 15. Nf4
{[%clk 0:02:21.9]} 15... Bxf4 {[%clk 0:02:12.1]} 16. gxf4 {[%clk 0:02:22.8]}
16... b5 {[%clk 0:01:59.3]} 17. Qf3 {[%clk 0:02:18.9]} 17... Rad8 {[%clk
0:00:51.4]} 18. b4 {[%clk 0:02:12.4]} 18... c4 {[%clk 0:00:48.4]} 19. Rad1
{[%clk 0:02:12.1]} 19... cxd3 {[%clk 0:00:44.7]} 20. Rxd3 {[%clk 0:02:13]} 20...
Ne4 {[%clk 0:00:44]} 21. Bh3 {[%clk 0:02:04.5]} 21... Qb6 {[%clk 0:00:29.3]} 22.
Bd4 {[%clk 0:02:03]} 22... Qc7 {[%clk 0:00:25]} 23. Nf5 {[%clk 0:02:00.2]} 23...
f6 {[%clk 0:00:21.6]} 24. Qg4 {[%clk 0:01:51.2]} 24... Nf8 {[%clk 0:00:20.6]}
25. f3 {[%clk 0:01:38.7]} 25... Nd6 {[%clk 0:00:20.6]} 26. Rc3 {[%clk
0:01:33.2]} 26... Qd7 {[%clk 0:00:18.1]} 27. Nh6+ {[%clk 0:01:30.5]} 27... Kh8
{[%clk 0:00:17.9]} 28. Qxd7 {[%clk 0:01:31.2]} 28... Nxd7 {[%clk 0:00:17.5]} 29.
Rc7 {[%clk 0:01:28.8]} 29... gxh6 {[%clk 0:00:07.6]} 30. Bxd7 {[%clk 0:01:28.2]}
30... Rf8 {[%clk 0:00:06.4]} 31. Rfc1 {[%clk 0:01:21.5]} 31... Rf7 {[%clk
0:00:05.9]} 32. Be6 {[%clk 0:01:20.3]} 32... Rxc7 {[%clk 0:00:04]} 33. Rxc7
{[%clk 0:01:21.2]} 1-0

[Event "Early-Titled-Tuesday-Blitz-October-03-2023"]
[Site "Chess.com"]
[Date "2023.10.03"]
[Round "4"]
[White "Let_it_be_1"]
[Black "Cheer_Down"]
[Result "1-0"]
[WhiteElo "2624"]
[BlackElo "2419"]
[TimeControl "180+1"]
[EndTime "8:38:23 PDT"]
[Termination "Let_it_be_1 won by resignation"]

1. e4 {[%clk 0:03:00.9]} 1... c5 {[%clk 0:02:59.7]} 2. Nf3 {[%clk 0:03:00.5]}
2... d6 {[%clk 0:02:59.9]} 3. d4 {[%clk 0:03:00.3]} 3... cxd4 {[%clk 0:03:00.2]}
4. Nxd4 {[%clk 0:03:01]} 4... Nf6 {[%clk 0:03:00.7]} 5. Nc3 {[%clk 0:03:01.2]}
5... a6 {[%clk 0:03:00.8]} 6. Be2 {[%clk 0:03:01.2]} 6... e5 {[%clk 0:03:00.3]}
7. Nb3 {[%clk 0:03:01.5]} 7... Be7 {[%clk 0:02:59.7]} 8. O-O {[%clk 0:03:01.7]}
8... O-O {[%clk 0:02:55.1]} 9. Kh1 {[%clk 0:03:01.9]} 9... b6 {[%clk 0:02:39.6]}
10. a4 {[%clk 0:03:00.6]} 10... Bb7 {[%clk 0:02:28]} 11. f3 {[%clk 0:03:00.7]}
11... Nc6 {[%clk 0:02:07.7]} 12. Be3 {[%clk 0:02:58.5]} 12... Nb4 {[%clk
0:02:05.6]} 13. Bg1 {[%clk 0:02:08.9]} 13... d5 {[%clk 0:01:53.7]} 14. exd5
{[%clk 0:02:08.7]} 14... Nfxd5 {[%clk 0:01:52.8]} 15. Nxd5 {[%clk 0:02:02.8]}
15... Nxd5 {[%clk 0:01:44.8]} 16. Bc4 {[%clk 0:01:42.5]} 16... Rc8 {[%clk
0:01:31.9]} 17. Nd2 {[%clk 0:01:30.1]} 17... Nb4 {[%clk 0:01:19.8]} 18. Bb3
{[%clk 0:01:26.4]} 18... Bc5 {[%clk 0:01:08.4]} 19. Bxc5 {[%clk 0:01:17.3]}
19... Rxc5 {[%clk 0:01:08.4]} 20. Ne4 {[%clk 0:01:09.6]} 20... Bxe4 {[%clk
0:01:06.6]} 21. fxe4 {[%clk 0:01:09.7]} 21... Qxd1 {[%clk 0:01:04.5]} 22. Raxd1
{[%clk 0:01:09.5]} 22... Nxc2 {[%clk 0:01:04.8]} 23. Rxf7 {[%clk 0:00:56.6]}
23... Nd4 {[%clk 0:00:30.5]} 24. Rxd4 {[%clk 0:00:52.6]} 24... Rc1+ {[%clk
0:00:30.5]} 25. Rf1+ {[%clk 0:00:52.4]} 25... Kh8 {[%clk 0:00:26.4]} 26. Rxc1
{[%clk 0:00:52.3]} 1-0

[Event "Early-Titled-Tuesday-Blitz-October-03-2023"]
[Site "Chess.com"]
[Date "2023.10.03"]
[Round "4"]
[White "marik_spb"]
[Black "LeRoidesChampions"]
[Result "0-1"]
[WhiteElo "2383"]
[BlackElo "2613"]
[TimeControl "180+1"]
[EndTime "8:38:25 PDT"]
[Termination "LeRoidesChampions won on time"]

1. e4 {[%clk 0:02:55.5]} 1... g6 {[%clk 0:02:59.6]} 2. d4 {[%clk 0:02:55.1]}
2... Bg7 {[%clk 0:03:00.3]} 3. Be3 {[%clk 0:02:55.8]} 3... a6 {[%clk 0:03:00.4]}
4. c4 {[%clk 0:02:55.5]} 4... d6 {[%clk 0:02:58.4]} 5. Nc3 {[%clk 0:02:55.7]}
5... c6 {[%clk 0:02:56.3]} 6. Bd3 {[%clk 0:02:53.8]} 6... b5 {[%clk 0:02:56.1]}
7. Nge2 {[%clk 0:02:51.8]} 7... Nd7 {[%clk 0:02:54.2]} 8. O-O {[%clk 0:02:51.4]}
8... Ngf6 {[%clk 0:02:52.7]} 9. f3 {[%clk 0:02:49.2]} 9... O-O {[%clk
0:02:51.5]} 10. d5 {[%clk 0:02:47.4]} 10... c5 {[%clk 0:02:49.4]} 11. cxb5
{[%clk 0:02:46.9]} 11... Ne5 {[%clk 0:02:46.7]} 12. a4 {[%clk 0:02:41.9]} 12...
e6 {[%clk 0:02:43.6]} 13. dxe6 {[%clk 0:02:32.4]} 13... Bxe6 {[%clk 0:02:42.2]}
14. Nf4 {[%clk 0:02:32]} 14... Bc4 {[%clk 0:02:40.3]} 15. Bxc4 {[%clk
0:02:22.8]} 15... Nxc4 {[%clk 0:02:39.4]} 16. Qe2 {[%clk 0:02:23.2]} 16... Nxe3
{[%clk 0:02:38.7]} 17. Qxe3 {[%clk 0:02:24.1]} 17... Ng4 {[%clk 0:02:30.3]} 18.
Qe2 {[%clk 0:02:06.5]} 18... Bd4+ {[%clk 0:02:31.2]} 19. Kh1 {[%clk 0:01:55.4]}
19... Ne5 {[%clk 0:02:28.7]} 20. Nfd5 {[%clk 0:01:50.8]} 20... Qh4 {[%clk
0:02:23.5]} 21. b6 {[%clk 0:01:36.4]} 21... Kh8 {[%clk 0:02:15.9]} 22. a5 {[%clk
0:01:30.3]} 22... f5 {[%clk 0:02:14.7]} 23. Nc7 {[%clk 0:00:38.1]} 23... Rac8
{[%clk 0:02:09.2]} 24. Ne6 {[%clk 0:00:37.3]} 24... Rf6 {[%clk 0:02:06.9]} 25.
Nxd4 {[%clk 0:00:35.7]} 25... cxd4 {[%clk 0:01:59.4]} 26. Qxa6 {[%clk
0:00:33.2]} 26... Rcf8 {[%clk 0:01:46.7]} 27. Nd5 {[%clk 0:00:32.6]} 27... fxe4
{[%clk 0:01:45.3]} 28. Nxf6 {[%clk 0:00:26.3]} 28... exf3 {[%clk 0:01:45.3]} 29.
Qb7 {[%clk 0:00:21]} 29... Rxf6 {[%clk 0:01:41.7]} 30. a6 {[%clk 0:00:12.8]}
30... Ng4 {[%clk 0:01:28.8]} 31. h3 {[%clk 0:00:13.1]} 31... Qg3 {[%clk
0:01:29]} 32. Qc8+ {[%clk 0:00:12.1]} 32... Kg7 {[%clk 0:01:28.2]} 33. Qd7+
{[%clk 0:00:03]} 33... Kh6 {[%clk 0:01:26.3]} 0-1

[Event "Early-Titled-Tuesday-Blitz-October-03-2023"]
[Site "Chess.com"]
[Date "2023.10.03"]
[Round "4"]
[White "vladoboch"]
[Black "goldihouse"]
[Result "0-1"]
[WhiteElo "2413"]
[BlackElo "2609"]
[TimeControl "180+1"]
[EndTime "8:38:26 PDT"]
[Termination "goldihouse won by resignation"]

1. e4 {[%clk 0:02:58.1]} 1... e6 {[%clk 0:02:59.7]} 2. d4 {[%clk 0:02:56.7]}
2... d5 {[%clk 0:03:00.6]} 3. e5 {[%clk 0:02:56.3]} 3... c5 {[%clk 0:03:00.6]}
4. c3 {[%clk 0:02:56.6]} 4... Nc6 {[%clk 0:03:01.1]} 5. Nf3 {[%clk 0:02:55.8]}
5... Bd7 {[%clk 0:03:01.7]} 6. Bd3 {[%clk 0:02:54.3]} 6... Rc8 {[%clk
0:03:01.5]} 7. O-O {[%clk 0:02:54.2]} 7... cxd4 {[%clk 0:03:01.6]} 8. a3 {[%clk
0:02:35.1]} 8... dxc3 {[%clk 0:03:00.3]} 9. Nxc3 {[%clk 0:02:35.2]} 9... h6
{[%clk 0:03:00.5]} 10. b4 {[%clk 0:02:34.4]} 10... Nge7 {[%clk 0:03:00]} 11. Bb2
{[%clk 0:02:33.9]} 11... Ng6 {[%clk 0:02:39.7]} 12. Re1 {[%clk 0:02:21.3]} 12...
Nf4 {[%clk 0:02:26.4]} 13. Bc2 {[%clk 0:02:10.4]} 13... g6 {[%clk 0:02:24.1]}
14. g3 {[%clk 0:02:02.5]} 14... Nh5 {[%clk 0:02:21.4]} 15. Nxd5 {[%clk 0:02:02]}
15... Bg7 {[%clk 0:01:58]} 16. Nc3 {[%clk 0:01:43.7]} 16... O-O {[%clk
0:01:56.7]} 17. Ne4 {[%clk 0:01:42.9]} 17... Ne7 {[%clk 0:01:45]} 18. Nf6+
{[%clk 0:01:40.8]} 18... Bxf6 {[%clk 0:01:44.8]} 19. exf6 {[%clk 0:01:41.7]}
19... Nd5 {[%clk 0:01:42.5]} 20. Qd2 {[%clk 0:01:14.8]} 20... Kh7 {[%clk
0:01:39.9]} 21. Bc1 {[%clk 0:01:15]} 21... Rh8 {[%clk 0:01:39.5]} 22. Ne5 {[%clk
0:00:44]} 22... Qxf6 {[%clk 0:01:19.5]} 23. Nxd7 {[%clk 0:00:14.9]} 23... Qxa1
{[%clk 0:01:13]} 24. Bb2 {[%clk 0:00:15.1]} 24... Rxc2 {[%clk 0:01:13.4]} 25.
Qxc2 {[%clk 0:00:10.7]} 25... Qxe1+ {[%clk 0:01:12.9]} 26. Kg2 {[%clk
0:00:11.6]} 26... Rd8 {[%clk 0:01:01.2]} 27. Ne5 {[%clk 0:00:09.8]} 27... Ne3+
{[%clk 0:00:59.8]} 28. fxe3 {[%clk 0:00:09.4]} 28... Rd2+ {[%clk 0:01:00.1]} 0-1

[Event "Early-Titled-Tuesday-Blitz-October-03-2023"]
[Site "Chess.com"]
[Date "2023.10.03"]
[Round "4"]
[White "HanSchut"]
[Black "TokChess"]
[Result "0-1"]
[WhiteElo "2322"]
[BlackElo "2502"]
[TimeControl "180+1"]
[EndTime "8:38:28 PDT"]
[Termination "TokChess won by resignation"]

1. e4 {[%clk 0:02:59.9]} 1... e5 {[%clk 0:02:58.8]} 2. Nf3 {[%clk 0:03:00]} 2...
Nc6 {[%clk 0:02:57.5]} 3. Bc4 {[%clk 0:03:00.9]} 3... Nf6 {[%clk 0:02:57.2]} 4.
d4 {[%clk 0:03:01.4]} 4... exd4 {[%clk 0:02:54]} 5. e5 {[%clk 0:03:02.3]} 5...
Ne4 {[%clk 0:02:53.7]} 6. Qe2 {[%clk 0:03:00.6]} 6... Nc5 {[%clk 0:02:50.2]} 7.
c3 {[%clk 0:03:01]} 7... d3 {[%clk 0:02:48.6]} 8. Qe3 {[%clk 0:03:00.9]} 8...
Ne6 {[%clk 0:02:47.7]} 9. O-O {[%clk 0:03:00.3]} 9... Be7 {[%clk 0:02:47]} 10.
Rd1 {[%clk 0:03:00.2]} 10... O-O {[%clk 0:02:45.1]} 11. Bxd3 {[%clk 0:02:59.6]}
11... d5 {[%clk 0:02:14.2]} 12. exd6 {[%clk 0:02:41.7]} 12... Bxd6 {[%clk
0:02:13.8]} 13. Bc2 {[%clk 0:02:18.7]} 13... Qf6 {[%clk 0:02:01.3]} 14. Qe4
{[%clk 0:02:02.4]} 14... g6 {[%clk 0:01:58.7]} 15. Bh6 {[%clk 0:01:48.4]} 15...
Re8 {[%clk 0:01:51.4]} 16. Bg5 {[%clk 0:01:26.3]} 16... Qg7 {[%clk 0:01:37.8]}
17. Nbd2 {[%clk 0:01:21]} 17... Bd7 {[%clk 0:01:36.7]} 18. Qh4 {[%clk
0:01:14.9]} 18... Nxg5 {[%clk 0:01:28.3]} 19. Nxg5 {[%clk 0:01:15.8]} 19... Be7
{[%clk 0:01:16.9]} 20. Nde4 {[%clk 0:01:09.4]} 20... Bf5 {[%clk 0:01:15.3]} 21.
Bb3 {[%clk 0:00:18.5]} 21... Bxe4 {[%clk 0:01:03.2]} 22. Bxf7+ {[%clk 0:00:18]}
22... Qxf7 {[%clk 0:01:00]} 23. Nxf7 {[%clk 0:00:18.6]} 23... Bxh4 {[%clk
0:00:58.9]} 24. Nh6+ {[%clk 0:00:17.7]} 24... Kg7 {[%clk 0:00:58.1]} 25. Ng4
{[%clk 0:00:18.3]} 25... Rad8 {[%clk 0:00:56.2]} 0-1

[Event "Early-Titled-Tuesday-Blitz-October-03-2023"]
[Site "Chess.com"]
[Date "2023.10.03"]
[Round "4"]
[White "KuzubovYuriy"]
[Black "Ermito2020"]
[Result "0-1"]
[WhiteElo "2872"]
[BlackElo "2616"]
[TimeControl "180+1"]
[EndTime "8:38:32 PDT"]
[Termination "Ermito2020 won on time"]

1. d4 {[%clk 0:02:59.1]} 1... Nf6 {[%clk 0:02:59.4]} 2. Nf3 {[%clk 0:02:58]}
2... g6 {[%clk 0:02:59.3]} 3. Nbd2 {[%clk 0:02:56.7]} 3... d5 {[%clk 0:02:57.5]}
4. Nb3 {[%clk 0:02:54.3]} 4... Bg7 {[%clk 0:02:56.9]} 5. h3 {[%clk 0:02:54.8]}
5... O-O {[%clk 0:02:54.6]} 6. Bf4 {[%clk 0:02:55.1]} 6... Ne4 {[%clk
0:02:48.9]} 7. c3 {[%clk 0:02:40]} 7... c5 {[%clk 0:02:38.4]} 8. dxc5 {[%clk
0:02:29]} 8... Na6 {[%clk 0:02:31.3]} 9. Be3 {[%clk 0:02:17.5]} 9... e5 {[%clk
0:02:22.6]} 10. Nfd2 {[%clk 0:01:50.2]} 10... Nxd2 {[%clk 0:02:11.6]} 11. Qxd2
{[%clk 0:01:46]} 11... Be6 {[%clk 0:02:12.2]} 12. g3 {[%clk 0:01:23]} 12... d4
{[%clk 0:01:59]} 13. cxd4 {[%clk 0:01:18]} 13... Bxb3 {[%clk 0:01:58.1]} 14.
axb3 {[%clk 0:01:17.3]} 14... exd4 {[%clk 0:01:58.6]} 15. Bg5 {[%clk 0:00:42.6]}
15... Qd5 {[%clk 0:01:55.7]} 16. Rg1 {[%clk 0:00:37]} 16... Nxc5 {[%clk
0:01:52.9]} 17. Bg2 {[%clk 0:00:32.5]} 17... Qe6 {[%clk 0:01:52.7]} 18. Ra5
{[%clk 0:00:14.5]} 18... Nxb3 {[%clk 0:01:50.9]} 19. Bd5 {[%clk 0:00:14.7]}
19... Qb6 {[%clk 0:01:18.2]} 20. Bxb3 {[%clk 0:00:10]} 20... Qxb3 {[%clk
0:01:19.1]} 21. Kf1 {[%clk 0:00:08.4]} 21... b6 {[%clk 0:01:14.7]} 22. Ra3
{[%clk 0:00:07.3]} 22... Qd5 {[%clk 0:01:14.9]} 23. Rf3 {[%clk 0:00:04.3]} 23...
Rfe8 {[%clk 0:01:13.1]} 24. Kg2 {[%clk 0:00:04.2]} 24... Re4 {[%clk 0:01:09.2]}
25. Bh6 {[%clk 0:00:01.5]} 25... Bxh6 {[%clk 0:01:04.2]} 26. Qxh6 {[%clk
0:00:01.3]} 26... Rxe2 {[%clk 0:01:04.9]} 0-1